Cogmind - Beta 17 @@@ ROGUE MODE // 2026.07.21 @ 22:25:26 Player: Stainfree Result: Destroyed by YI-UF0 with YI-UF0's Doublenader Performance ------------- Evolutions (0) 0 Regions Visited (2) 400 Robots Destroyed (13) 65 Value Destroyed (320) 320 Prototype IDs (0) 0 Alien Tech Used (0) 0 Bonus (0) 0 TOTAL SCORE: 785 Bonus ------- None Cogmind --------- Core Integrity 0/250 Matter 270/300 Energy 96/100 System Corruption 9% Temperature Cool (0) Movement Walking (120) Location -10/Mines Parts ------- > --- POWER (1) -------- (None) > --- PROPULSION (2) --- Aluminum Leg > --- UTILITY (2) ------ Signal Interpreter Improved Terrain Scanner > --- WEAPON (2) ------- Grenade Launcher > --- INVENTORY (5) ---- Light Ion Engine Wheel Particle Gun Peak State ------------ > --- POWER ------------ Light Ion Engine > --- PROPULSION ------- Aluminum Leg Aluminum Leg > --- UTILITY ---------- Sensor Array Signal Interpreter > --- WEAPON ----------- Particle Gun Particle Gun > --- INVENTORY -------- Ion Engine Wheel Grenade Launcher Grenade Launcher Mining Laser [Rating: 9] Favorites ----------- Power Light Ion Engine Engine Light Ion Engine Power Core Light Nuclear Core Propulsion Aluminum Leg Leg Aluminum Leg Utility Signal Interpreter Device Sensor Array Processor Signal Interpreter Weapon Particle Gun Energy Gun Particle Gun Launcher Grenade Launcher Special Weapon Mining Laser Build | -11 -10 -10 ------- Run | Yrd Mat Min Slots Evolved . | . . . Power . | . . . Propulsion . | . . . Utility . | . . . Weapon . | . . . Parts Attached 18 | 4 7 7 Power 4 | 1 . 3 Engine 3 | 1 . 2 Core 1 | . . 1 Reactor . | . . . Propulsion 3 | 2 . 1 Treads . | . . . Leg 3 | 2 . 1 Wheel . | . . . Hover . | . . . Flight . | . . . Utility 3 | . 2 1 Device 2 | . 1 1 Storage . | . . . Processor 1 | . 1 . Hackware . | . . . Protection . | . . . Artifact . | . . . Weapon 8 | 1 5 2 Energy Gun 5 | 1 3 1 Energy Cannon . | . . . Ballistic Gun . | . . . Ballistic Cannon . | . . . Launcher 2 | . 2 . Special Weapon 1 | . . 1 Impact Weapon . | . . . Slashing Weapon . | . . . Piercing Weapon . | . . . Special Melee Weapon . | . . . Unidentified Prototypes . | . . . Parts Lost 7 | . . 7 Power 2 | . . 2 Propulsion 1 | . . 1 Utility 1 | . . 1 Weapon 3 | . . 3 Highest Loss Streak 3 | . . 3 To Critical Strikes . | . . . Average Backups 4 | 1 4 4 Power . | . 1 . Propulsion . | . 1 1 Utility . | . . . Weapon 2 | . 2 2 Tool/Special . | . . . Unused Backups 6 | . 2 4 Power 3 | . . 3 Propulsion 1 | . . 1 Utility 1 | . 1 . Weapon 1 | . 1 . Tool/Special . | . . . Average Slot Usage (%) 87 | . 89 86 Engine 9 | . 14 8 Core 2 | . . 2 Leg 23 | . 28 21 Device 12 | . 9 13 Processor 12 | . 8 14 Energy Gun 18 | . 26 15 Launcher 4 | . 1 5 Special Weapon 2 | . . 3 Peak Build Rating 9 | 4 8 9 Average Rating 7 | 3 6 7 On Entrance 4 | . 4 8 Avg Prop Armor Cover (%) . | . . . Naked Turns . | . . . Heaviest Build 12 | 5 8 12 Greatest Support 20 | 20 20 20 Greatest Overweight (x) 1 | . . 1 Average Overweight (x) . | . . . Largest Inventory Capacity 5 | 5 5 5 Average Capacity 5 | 5 5 5 Most Carried 5 | 5 5 5 Average Carried 4 | 1 4 4 Final Capacity 5 | 5 5 5 Final Carried 5 | 5 5 3 Class Distribution -------------------- 100% | Mutant Dominant Class ---------------- Mutant | -10/Materials Mutant | -10/Mines Resources | -11 -10 -10 ----------- Run | Yrd Mat Min Matter Collected 658 | 198 82 378 Remotely . | . . . Salvage Created 324 | . 134 190 Parts 22 | . 6 16 Haulers Intercepted . | . . . Recyclers Shooed . | . . . Parts Field Recycled . | . . . Retrieved Matter . | . . . Parts Self-Destructed . | . . . Prevented . | . . . Parts Restored . | . . . Kills | -11 -10 -10 ------- Run | Yrd Mat Min Combat Hostiles Destroyed 8 | . 2 6 Guns 4 | . . 4 AOE 4 | . 2 2 Classes Destroyed 6 | . 3 3 Worker 1 | . . 1 Tunneler 2 | . . 2 Recycler 1 | . 1 . Watcher 1 | . 1 . Swarmer 2 | . . 2 Grunt 6 | . 2 4 Best Kill Streak 4 | . 2 4 Combat Bots Only 2 | . 2 2 Max Kills in Single Turn 2 | . 2 2 Gunslinging . | . . . Exploded 2 | . 2 1 Melee . | . . . Uniques/NPCs Destroyed . | . . . Combat | -11 -10 -10 -------- Run | Yrd Mat Min Hostile Shots Fired 73 | . 10 63 Missed 29 | . 3 26 Hits 44 | . 7 37 Projectile 44 | . 7 37 AOE 13 | . . 13 Damage Taken 861 | . 99 762 Core 261 | . 26 235 Absorbed by Shields . | . . . Core Remaining (%) 100 | 100 . . Volleys Fired 35 | . 16 19 Largest 2 | . 2 2 Hottest 130 | . 105 130 Shots Fired 69 | . 32 37 Gun 58 | . 29 29 Cannon . | . . . Launcher 11 | . 3 8 Special . | . . . Kinetic . | . . . Thermal 57 | . 28 29 Explosive 11 | . 3 8 Electromagnetic 1 | . 1 . Robot Hit Streak 5 | . 5 5 Robot Miss Streak 6 | . 3 6 Penetration Max . | . . . Secondary Targets . | . . . Shots Hit Robots 28 | . 14 14 Core Hits 25 | . 8 17 Critical Kills . | . . . Critical Parts Destroyed . | . . . Critical Strikes 1 | . 1 . Burn 1 | . 1 . Melee Attacks . | . . . Impact . | . . . Slashing . | . . . Piercing . | . . . Sneak Attacks . | . . . Combat Hostiles . | . . . Follow-up Attacks . | . . . Damage Inflicted 852 | . 321 531 Guns 336 | . 170 166 Cannons . | . . . Explosions 516 | . 151 365 Melee . | . . . Ramming . | . . . Kinetic . | . . . Thermal 336 | . 170 166 Explosive 516 | . 151 365 Electromagnetic . | . . . Impact . | . . . Slashing . | . . . Piercing . | . . . Highest Corruption 9 | . 9 9 Average Corruption 8 | . 7 9 Corruption Purged . | . . . Corruption Blocked . | . . . Effects 51 | . 12 39 Message Errors 12 | . 1 11 Matter Fused 13 | . 3 10 Heat Flow Errors 5 | . 1 4 Energy Discharges 8 | . 3 5 Data Loss (minor) 9 | . 2 7 Misfires 3 | . 1 2 Weapon Failures 1 | . 1 . Overload Shots . | . . . Overflow Damage . | . . . Projectiles . | . . . Explosions . | . . . Melee . | . . . Knockbacks . | . . . Impact . | . . . Kinetic . | . . . Secondary . | . . . Self-Inflicted Damage 40 | . . 40 Shots 2 | . . 2 Rammed . | . . . Targets Rammed . | . . . Kicked . | . . . Crushed . | . . . Highest Temperature 271 | . 255 271 Average Temperature 71 | . 72 71 Received Heat Transfer 162 | . 54 108 Siege Activations . | . . . Martial Activations . | . . . Shielding Activations . | . . . Robots Disrupted . | . . . Combat Hostiles . | . . . Robots Corrupted . | . . . Combat Hostiles . | . . . Parts Fried . | . . . Impact Corruptions . | . . . Robots Melted . | . . . Combat Hostiles . | . . . Parts Melted . | . . . Heat Transferred 868 | . 459 409 Parts Sabotaged . | . . . Parts Stolen . | . . . Parts Stripped . | . . . Power Chain Reactions . | . . . Alert | -11 -10 -10 ------- Run | Yrd Mat Min Maximum Alert Level . | . . . Low Security (%) 100 | 100 100 100 Level 1 . | . . . Level 2 . | . . . Level 3 . | . . . Level 4 . | . . . Level 5 . | . . . High Security . | . . . Max Security . | . . . Peak Influence 90 | . 73 90 Initial . | . . . Average 12 | . 18 10 Influence Increases 315 | . 112 203 Destroy 0b10 Robot/C 160 | . 40 120 Destroy 0b10 Robot/NC 25 | . 10 15 Destroy Leader 32 | . 12 20 Disable Machine 30 | . 30 . Destroy Structure 68 | . 20 48 Influence Decreases 314 | . 112 202 Time Decay 307 | . 112 195 Lost Part 7 | . . 7 Squads Dispatched . | . . . Investigation . | . . . Extermination . | . . . Reinforcement . | . . . Assault . | . . . Garrison . | . . . Intercept . | . . . Searches Triggered . | . . . Construction Impeded . | . . . Haulers Reinforced . | . . . Active Scanning Responses . | . . . Cargo Convoy Interrupts . | . . . Stealth | -11 -10 -10 --------- Run | Yrd Mat Min Distress Signals 1 | . . 1 Communications Jammed . | . . . Distress Signals . | . . . Times Spotted 23 | . 6 17 Peak Tracking Total 3 | . 3 3 Tactical Retreats 5 | . . 5 Traps | -11 -10 -10 ------- Run | Yrd Mat Min Traps Triggered 6 | . 5 1 Indirectly . | . . . Trap Hack Attempts . | . . . Triggered . | . . . Disarmed . | . . . Reprogrammed . | . . . Reused 1 | . . 1 Traps Extracted . | . . . Installed 4 | . . 4 Triggered . | . . . Most Traps Carried 2 | . . 2 Machines | -11 -10 -10 ---------- Run | Yrd Mat Min Machines Disabled 2 | . 2 . Max in Single Turn 1 | . 1 . Machines Repaired . | . . . Machines Dismantled . | . . . Machines Sabotaged . | . . . Overloaded Fab Kills . | . . . Hacking | -11 -10 -10 --------- Run | Yrd Mat Min Machines Accessed 3 | . 3 . Terminals 2 | . 2 . Fabricators . | . . . Repair Stations . | . . . Recycling Units 1 | . 1 . Scanalyzers . | . . . Garrison Access . | . . . Total Hacks 6 | . 6 . Successful 3 | . 3 . Failed 3 | . 3 . Catastrophic 1 | . 1 . Database Lockouts . | . . . Manual 2 | . 2 . Terminals 3 | . 3 . Fabricators . | . . . Repair Stations . | . . . Recycling Units 3 | . 3 . Scanalyzers . | . . . Garrison Access . | . . . Terminal Hacks 1 | . 1 . Locate Traps 1 | . 1 . Fabricator Hacks . | . . . Repair Station Hacks . | . . . Recycling Unit Hacks 2 | . 2 . Report Inventory 1 | . 1 . Retrieve Components 1 | . 1 . Scanalyzer . | . . . Garrison Access Hacks . | . . . Unauthorized Hacks . | . . . Terminals . | . . . Fabricators . | . . . Repair Stations . | . . . Recycling Units . | . . . Scanalyzers . | . . . Garrison Access . | . . . Data Cores Recovered . | . . . Used . | . . . Hacking Detections 2 | . 2 . Full Trace Events . | . . . Feedback Events . | . . . Feedback Blocked . | . . . Robot Schematics Acquired . | . . . Robots Built . | . . . Authchips . | . . . Time . | . . . Total Robot Build Rating . | . . . Part Schematics Acquired . | . . . Parts Built . | . . . Authchips . | . . . Time . | . . . Total Part Build Rating . | . . . Part Studies Acquired . | . . . Parts Repaired . | . . . Time . | . . . Parts Recycled . | . . . Recycled Matter . | . . . Retrieved Matter . | . . . Retrieved Components 4 | . 4 . Parts Scanalyzed . | . . . Part Schematics Acquired . | . . . Parts Damaged . | . . . Bothacking | -11 -10 -10 ------------ Run | Yrd Mat Min Used RIF Installer . | . . . Robots Hacked . | . . . Non-combat . | . . . Combat . | . . . Robot Hacks Applied . | . . . Relay Couplers Released . | . . . Fabnet Peak Effective % . | . . . Robots Rewired . | . . . Allies Hacked . | . . . Hacks Repelled . | . . . Allies | -11 -10 -10 -------- Run | Yrd Mat Min Total Allies . | . . . Largest Group . | . . . Highest-Rated Group . | . . . Highest-Rated Ally . | . . . Total Orders . | . . . Ally Attacks . | . . . Total Damage . | . . . Kills . | . . . Allies Corrupted . | . . . Allies Melted . | . . . Intel | -11 -10 -10 ------- Run | Yrd Mat Min Active Infowar (turns) 1488 | . 296 1192 Sensors 1224 | . 296 928 Terrain 264 | . . 264 Robot Analysis Total . | . . . Derelict Logs Recovered 2 | . . 2 Drone Launches . | . . . Drone Recoveries . | . . . Exploration | -11 -10 -10 ------------- Run | Yrd Mat Min Turns Passed 1732 | 70 452 1210 Spaces Moved 1210 | 56 315 839 Core 14 | 14 . . Treads . | . . . Legs 1196 | 42 315 839 Wheels . | . . . Hover . | . . . Flight . | . . . Fastest Speed 50 | 50 120 120 Average Speed 121 | 102 120 123 Slowest Speed 190 | 120 120 190 Overloaded Moves . | . . . Propulsion Burnouts . | . . . Robots Hopped . | . . . Potential Cave-ins 6 | . . 6 Cave-ins Triggered . | . . . Exploration Rate (%) 41 | 4 43 77 Regions Visited 2 Branch Regions 1 Pre-discovered Areas . | . . . Known Exits Taken 1 | . 1 . Unknown Exits Taken 1 | 1 . . Scrap Searched 2 | . . 2 Spaces Dug . | . . . Terrain Destroyed 75 | . 18 57 Melee . | . . . Projectile . | . . . AOE 75 | . 18 57 Terrain Rammed . | . . . Walls Destroyed . | . . . Machines Disabled . | . . . Actions | -11 -10 -10 --------- Run | Yrd Mat Min Total 1407 | 68 357 982 Wait 80 | . 2 78 Move 1208 | 55 314 839 Hop . | . . . Pick Up 29 | 9 6 14 Fast Attach 4 | . 3 1 Attach 12 | 4 2 6 Detach . | . . . Swap 15 | . 6 9 Drop 20 | . 8 12 Fire 35 | . 16 19 Melee . | . . . Ram . | . . . Kick . | . . . Crush . | . . . Escape Stasis . | . . . Rewire . | . . . Trap 4 | . . 4 Miscellaneous . | . . . Route ------- -11/Scrapyard -10/Materials (discovered 2 exits: *Mat / *Min) -10/Mines (discovered 3 exits: *Mat x2 / *Sub) History --------- Turn | Location | Event 26 | -11/Scrapyard | Discovered new exit (range 16) 71 | -11/Scrapyard | Entered Materials 72 | -10/Materials | Discovered new exit (range 14) 309 | -10/Materials | Build established: Mutant 375 | -10/Materials | Discovered new exit (range 16) 511 | -10/Materials | Identified exit to Mines 523 | -10/Materials | Entered Mines 617 | -10/Mines | Learned Materials trap positions 873 | -10/Mines | Discovered new exit (range 8) 882 | -10/Mines | Identified exit to Materials 950 | -10/Mines | Found a hidden stash of uninstalled traps 1161 | -10/Mines | Core integrity fell below 50% 1482 | -10/Mines | Lost 3 parts (1u2w) 1497 | -10/Mines | Discovered exit to Materials (range 15) 1653 | -10/Mines | Discovered new exit (range 9) 1665 | -10/Mines | Identified exit to Subcaves 1726 | -10/Mines | Core integrity fell below 20% 1733 | -10/Mines | Destroyed by YI-UF0 with YI-UF0's Doublenader Last Messages --------------- 01680_ K-01 Serf collects debris. 01681_ U-05 Engineer builds a Wall. 01684_ K-01 Serf collects debris. 01685_ U-05 Engineer lays Concrete. 01687_ K-01 Serf collects debris. 01688_ U-05 Engineer lays Concrete. 01692_ K-01 Serf collects debris. 01692_ Dropped Blade Trap. 01693_ Installed Blade Trap. 01696_ U-05 Engineer builds a Wall. 01697_ K-01 Serf collects debris. 01702_ U-05 Engineer builds a Wall. 01704_ K-01 Serf collects debris. 01707_ K-01 Serf destroyed. 01707_ Mining Laser destroyed. 01707_ U-05 Engineer builds a Wall. 01722_ System corrupted: Energy discharge (-36). 01722_ The unstable cave ceiling collapses. 01725_ Lgt. Ion Engine destroyed. 01728_ The unstable cave ceiling collapses. Map ----- +----------------------------------------------------+ | ?# """ #???????### ## # ### # | | ?# ## #???##?## < # | | ?######## #??????# % ########### | | ???????## ##???#?## % ## # #????? | | ????????# ###???## # %#########????? | | ???????## #????## # #??????????? | | ?????### #????# # * #########????? | | ????## ##???## #????? | | ????# ##???# ####### ##?### | | ????## ##?## # ##??# #### | | ?????#### # #### # # ##?## ## # | | ????????# ## ## # # #??# # | | ????????# ?# ## ###??# % | | ????????# ?# % #??### = | | ????????# ?# = #????## | | ???#??### ## ### # #????### | | ??????# ?# ###% #?#??# # | | ??????# ""?# # ###??# | | ??????# ""?# # ###?# | | ??????# "??## #### ##### | | ??????# ???# # # ^### # | | ??????# ???# ### ## # # | | ??????##### ?### ## # # # | | ??????????# ## ## # # | | ??????????# ## = % ! | | ??????????# @ g | | ?????????#### | | ????????????# # | | ????????????## ### # | | ???????????#?### ###### | | ???????????????? #??### | | ?????????????#??## ##???? | | ???????????? ????## ##???? | | ??????????????????## #???#? | | ??#??????????#?????# % # #??? ? | | ????????????#??????# ## #????# | | ??????#????????????# ######???? | | ???????????????????# #????????? | | ???????????????????# ##> #???????? | | ???????????????????# #?###???? ??? | | ??????????????????## ##???????????? | | ???????????????????# ??#??????????? | | ??????????????????# ?????????????? | | ????????????????? ?????????????? | | ???????????????? ?????????????? | | ????????????#??#########?????????????? | | ????????????????????????#????????????? | | ?????????????????????????????????????? | | | | | +----------------------------------------------------+ Best States ------------- Heat Dissipation 25 Energy Generation 14 Energy Capacity 160 Matter Stores 300 Matter Capacity 300 Sight Range 16 Robot Scan Range 14 Terrain Scan Range 16 Terrain Scan Density 10 Evasion (%) 55 Item Schematics ----------------- None Robot Schematics ------------------ None Fabricated ------------ Nothing Repaired ---------- Nothing Studied --------- None Alien Tech Used ----------------- None Achievements -------------- None Challenges ------------ None Game ------ Seed MatterReactiveNanoactuators Manual? 0 Play Time 00:23:16 Cumulative 187.3 hours Start 2026.07.21 @ 22:05:08 End 2026.07.21 @ 22:25:26 Sessions 1 Manual Loads 0 Difficulty Rogue Special Mode None Game No. 27 Rogue 18 Adventurer 9 Explorer 0 Win Type - Total 11 Types 7/1/2/0/0/0/0/0/0/1 Lore% 44 Gallery% 51 Achievement% 44 Wizard Run 0 Options --------- Layout 1 ASCII 0 Keyboard 0 Movement Mouse Keybinds 0 Fullscreen 2 Font 32/SmallcapsGlow Map View 77x35 Zoom Use 0% Tactical HUD 1 Map Filters NONE Filters NONE Steam 1 RUN: c955061c-c87a-46e2-81ab-46c9232b14e1